fUSD/lending_fUSD_20250110
["ID","MTS","AMOUNT","RATE_DAILY","PERIOD"]
[348361880,1736467840403,-500.0,9.838e-05,2]
[348361883,1736467840413,-881.8,9.838e-05,2]
[348361884,1736467840422,-500.0,9.838e-05,2]
[348361886,1736467840432,-500.0,9.838e-05,2]
[348361888,1736467840441,-414.24458156,9.838e-05,2]
[348361891,1736467840452,-754.46,9.838e-05,2]
[348361892,1736467840463,-500.0,9.838e-05,2]
[348361894,1736467840475,-500.0,9.838e-05,2]
[348361897,1736467840487,-500.0,9.838e-05,2]
[348361898,1736467840497,-606.33,9.838e-05,2]
[348361899,1736467840507,-500.0,9.838e-05,2]
[348361900,1736467840518,-500.0,9.838e-05,2]
[348361901,1736467840527,-936.22,9.838e-05,2]
[348361902,1736467840537,-500.0,9.838e-05,2]
[348361903,1736467840546,-500.0,9.838e-05,2]
[348361904,1736467840555,-500.0,9.838e-05,2]
[348361905,1736467840565,-624.2,9.838e-05,2]
[348361906,1736467840574,-500.0,9.838e-05,2]
[348361907,1736467840583,-500.0,9.838e-05,2]
[348361908,1736467840593,-619.65,9.838e-05,2]
[348361909,1736467840602,-500.0,9.838e-05,2]
[348361910,1736467840612,-838.17,9.838e-05,2]
[348361911,1736467840621,-500.0,9.838e-05,2]
[348361912,1736467840631,-500.0,9.838e-05,2]
[348361913,1736467840640,-570.84,9.838e-05,2]
[348361914,1736467840652,-624.19,9.838e-05,2]
[348361915,1736467840662,-540.98,9.838e-05,2]
[348361916,1736467840671,-763.67,9.838e-05,2]
[348361917,1736467840681,-500.0,9.838e-05,2]
[348361918,1736467840691,-500.0,9.838e-05,2]
[348361919,1736467840700,-500.0,9.838e-05,2]
[348361920,1736467840710,-500.0,9.838e-05,2]
[348361921,1736467840719,-500.0,9.838e-05,2]
[348361922,1736467840729,-500.0,9.838e-05,2]
[348361923,1736467840738,-500.0,9.838e-05,2]
[348361924,1736467840748,-566.41680199,9.838e-05,2]
[348361925,1736467840759,-500.0,9.838e-05,2]
[348361926,1736467840768,-500.0,9.838e-05,2]
[348361927,1736467840778,-500.0,9.838e-05,2]
[348361928,1736467840787,-500.0,9.838e-05,2]
[348361929,1736467840797,-500.0,9.838e-05,2]
[348361930,1736467840806,-500.0,9.838e-05,2]
[348361931,1736467840817,-500.0,9.838e-05,2]
[348361932,1736467840826,-489.46710192,9.838e-05,2]
[348361933,1736467840835,-500.0,9.838e-05,2]
[348361934,1736467840845,-750.45,9.838e-05,2]
[348361935,1736467840855,-500.0,9.838e-05,2]
[348361936,1736467840865,-500.0,9.838e-05,2]
[348361937,1736467840874,-600.96,9.838e-05,2]
[348361938,1736467840885,-500.0,9.838e-05,2]
[348361939,1736467840898,-4036.99,9.838e-05,2]
[348361940,1736467840907,-500.0,9.838e-05,2]
[348361941,1736467840917,-842.66,9.838e-05,2]
[348361942,1736467840927,-500.0,9.838e-05,2]
[348361943,1736467840936,-500.0,9.838e-05,2]
[348361944,1736467840946,-500.0,9.838e-05,2]
[348361945,1736467840955,-500.0,9.838e-05,2]
[348361946,1736467840965,-500.0,9.838e-05,2]
[348361947,1736467840975,-627.12,9.838e-05,2]
[348361948,1736467840985,-500.0,9.838e-05,2]
[348361949,1736467840994,-500.0,9.838e-05,2]
[348361950,1736467841004,-500.0,9.838e-05,2]
[348361951,1736467841013,-261.77483749,9.838e-05,2]
[348361952,1736467841023,-500.0,9.838e-05,2]
[348361953,1736467841032,-3075.85,9.838e-05,2]
[348361954,1736467841042,-500.0,9.838e-05,2]
[348361955,1736467841052,-607.61,9.838e-05,2]
[348361956,1736467841062,-771.02,9.838e-05,2]
[348361957,1736467841071,-500.0,9.838e-05,2]
[348361958,1736467841081,-500.0,9.838e-05,2]
[348361959,1736467841091,-1433.23,9.838e-05,2]
[348361960,1736467841100,-500.0,9.838e-05,2]
[348361961,1736467841110,-500.0,9.838e-05,2]
[348361962,1736467841119,-718.63,9.838e-05,2]
[348361963,1736467841129,-500.0,9.838e-05,2]
[348361964,1736467841139,-500.0,9.838e-05,2]
[348361965,1736467841153,-500.0,9.838e-05,2]
[348361966,1736467841163,-500.0,9.838e-05,2]
[348361967,1736467841173,-1057.87,9.838e-05,2]
[348361968,1736467841182,-2526.75,9.838e-05,2]
[348361969,1736467841192,-500.0,9.838e-05,2]
[348361970,1736467841202,-500.0,9.838e-05,2]
[348361971,1736467841211,-500.0,9.838e-05,2]
[348361972,1736467841220,-500.0,9.838e-05,2]
[348361973,1736467841230,-500.0,9.838e-05,2]
[348361974,1736467841241,-1092.71,9.838e-05,2]
[348361975,1736467841251,-500.0,9.838e-05,2]
[348361976,1736467841261,-500.0,9.838e-05,2]
[348361977,1736467841270,-500.0,9.838e-05,2]
[348361978,1736467841280,-500.0,9.838e-05,2]
[348361979,1736467841289,-500.0,9.838e-05,2]
[348361980,1736467841299,-1600.54,9.838e-05,2]
[348361981,1736467841308,-665.25,9.838e-05,2]
[348361982,1736467841317,-565.58,9.838e-05,2]
[348361983,1736467841327,-500.0,9.838e-05,2]
[348361984,1736467841336,-600.91,9.838e-05,2]
[348361985,1736467841345,-1226.75,9.838e-05,2]
[348361986,1736467841354,-1138.51,9.838e-05,2]
[348361987,1736467841363,-500.0,9.838e-05,2]
[348361988,1736467841374,-500.0,9.838e-05,2]
[348361989,1736467841386,-891.84,9.838e-05,2]
[348361990,1736467841398,-1031.63,9.838e-05,2]
[348361991,1736467841408,-675.2,9.838e-05,2]
[348361992,1736467841417,-500.0,9.838e-05,2]
[348361993,1736467841427,-569.67,9.838e-05,2]
[348361994,1736467841436,-852.48,9.838e-05,2]
[348361995,1736467841445,-500.0,9.838e-05,2]
[348361996,1736467841455,-726.39,9.838e-05,2]
[348361997,1736467841464,-500.0,9.838e-05,2]
[348361998,1736467841472,-500.0,9.838e-05,2]
[348361999,1736467841482,-639.75,9.838e-05,2]
[348362000,1736467841491,-500.0,9.838e-05,2]
[348362001,1736467841500,-500.0,9.838e-05,2]
[348362002,1736467841509,-500.0,9.838e-05,2]
[348362003,1736467841519,-500.0,9.838e-05,2]
[348362004,1736467841528,-500.0,9.838e-05,2]
[348362005,1736467841537,-500.0,9.838e-05,2]
[348362006,1736467841548,-500.0,9.838e-05,2]
[348362007,1736467841558,-500.0,9.838e-05,2]
[348362008,1736467841568,-500.0,9.838e-05,2]
[348362009,1736467841579,-500.0,9.838e-05,2]
[348362010,1736467841588,-170.08373119,9.838e-05,2]
[348362011,1736467841597,-1261.38,9.838e-05,2]
[348362012,1736467841606,-500.0,9.838e-05,2]
[348362013,1736467841616,-563.88,9.838e-05,2]
[348362014,1736467841625,-500.0,9.838e-05,2]
[348362015,1736467841634,-500.0,9.838e-05,2]
[348362016,1736467841643,-838.84,9.838e-05,2]
[348362017,1736467841655,-500.0,9.838e-05,2]
[348362018,1736467841664,-500.0,9.838e-05,2]
[348362019,1736467841673,-1065.93,9.838e-05,2]
[348362020,1736467841683,-669.26,9.838e-05,2]
[348362021,1736467841692,-500.0,9.838e-05,2]
[348362022,1736467841702,-772.99,9.838e-05,2]
[348362023,1736467841713,-500.0,9.838e-05,2]
[348362024,1736467841722,-500.0,9.838e-05,2]
[348362025,1736467841731,-660.8,9.838e-05,2]
[348362026,1736467841741,-500.0,9.838e-05,2]
[348362027,1736467841750,-219.31468623,9.838e-05,2]
[348362028,1736467841759,-500.0,9.838e-05,2]
[348362029,1736467841769,-500.0,9.838e-05,2]
[348362030,1736467841778,-500.0,9.838e-05,2]
[348362031,1736467841788,-939.44,9.838e-05,2]
[348362032,1736467841798,-500.0,9.838e-05,2]
[348362033,1736467841808,-500.0,9.838e-05,2]
[348362034,1736467841819,-500.0,9.838e-05,2]
[348362035,1736467841831,-500.0,9.838e-05,2]
[348362036,1736467841842,-1010.8,9.838e-05,2]
[348362037,1736467841852,-500.0,9.838e-05,2]
[348362038,1736467841863,-500.0,9.838e-05,2]
[348362039,1736467841873,-500.0,9.838e-05,2]
[348362040,1736467841883,-500.0,9.838e-05,2]
[348362041,1736467841892,-500.0,9.838e-05,2]
[348362042,1736467841908,-500.0,9.838e-05,2]
[348362043,1736467841918,-500.0,9.838e-05,2]
[348362044,1736467841928,-500.0,9.838e-05,2]
[348362045,1736467841937,-500.0,9.838e-05,2]
[348362046,1736467841946,-500.0,9.838e-05,2]
[348362047,1736467841956,-254.45944867,9.838e-05,2]
[348362048,1736467841966,-500.0,9.838e-05,2]
[348362049,1736467841976,-500.0,9.838e-05,2]
[348362050,1736467841985,-500.0,9.838e-05,2]
[348362051,1736467841996,-500.0,9.838e-05,2]
[348362052,1736467842006,-500.0,9.838e-05,2]
[348362053,1736467842016,-787.39,9.838e-05,2]
[348362054,1736467842026,-500.0,9.838e-05,2]
[348362055,1736467842036,-500.0,9.838e-05,2]
[348362056,1736467842045,-845.21,9.838e-05,2]
[348362057,1736467842055,-500.0,9.838e-05,2]
[348362058,1736467842065,-500.0,9.838e-05,2]
[348362059,1736467842076,-500.0,9.838e-05,2]
[348362060,1736467842086,-4172.82,9.838e-05,2]
[348362061,1736467842096,-500.0,9.838e-05,2]
[348362062,1736467842105,-500.0,9.838e-05,2]
[348362063,1736467842115,-500.0,9.838e-05,2]
[348362064,1736467842124,-500.0,9.838e-05,2]
[348362065,1736467842134,-1534.28,9.838e-05,2]
[348362066,1736467842144,-673.2,9.838e-05,2]
[348362067,1736467842157,-1900.29,9.838e-05,2]
[348362068,1736467842166,-500.0,9.838e-05,2]
[348362069,1736467842176,-664.75,9.838e-05,2]
[348362070,1736467842185,-500.0,9.838e-05,2]
[348362071,1736467842195,-1860.29,9.839e-05,2]
[348362072,1736467842206,-346.11751151,9.839e-05,2]
[348362073,1736467842215,-1306.43,9.839e-05,2]
[348362074,1736467842225,-500.0,9.839e-05,2]
[348362075,1736467842235,-396.52346096,9.839e-05,2]
[348362076,1736467842244,-500.0,9.839e-05,2]
[348362077,1736467842255,-2942.46,9.839e-05,2]
[348362078,1736467842265,-1663.6,9.839e-05,2]
[348362079,1736467842278,-5718.42,9.839e-05,2]
[348362080,1736467842289,-3784.12,9.839e-05,2]
[348362081,1736467842298,-500.0,9.839e-05,2]
[348362082,1736467842307,-1649.2,9.839e-05,2]
[348362083,1736467842318,-4543.02,9.839e-05,2]
[348362084,1736467842328,-807.06,9.839e-05,2]
[348362085,1736467842338,-860.18,9.839e-05,2]
[348362086,1736467842347,-735.75,9.839e-05,2]
[348362087,1736467842356,-500.0,9.839e-05,2]
[348362088,1736467842366,-895.98,9.839e-05,2]
[348362089,1736467842376,-500.0,9.839e-05,2]
[348362090,1736467842386,-1266.3,9.839e-05,2]
[348362091,1736467842397,-950.32,9.839e-05,2]
[348362092,1736467842407,-770.2,9.839e-05,2]
[348362093,1736467842417,-1416.74,9.839e-05,2]
[348362094,1736467842427,-500.0,9.839e-05,2]
[348362095,1736467842436,-779.64,9.839e-05,2]
[348362096,1736467842446,-1000.96,9.839e-05,2]
[348362097,1736467842455,-670.04,9.839e-05,2]
[348362098,1736467842465,-500.0,9.839e-05,2]
[348362099,1736467842475,-543.25,9.839e-05,2]
[348362100,1736467842484,-1920.71,9.839e-05,2]
[348362101,1736467842493,-500.0,9.839e-05,2]
[348362102,1736467842503,-1191.96,9.839e-05,2]
[348362103,1736467842513,-676.22,9.839e-05,2]
[348362104,1736467842524,-1942.06,9.839e-05,2]
[348362105,1736467842534,-1086.05,9.839e-05,2]
[348362106,1736467842545,-500.0,9.839e-05,2]
[348362107,1736467842555,-1408.89,9.839e-05,2]
[348362108,1736467842566,-500.0,9.839e-05,2]
[348362109,1736467842640,-2712.15,9.839e-05,2]
[348362110,1736467842654,-663.33,9.839e-05,2]
[348362111,1736467842663,-500.0,9.839e-05,2]
[348362112,1736467842673,-500.0,9.839e-05,2]
[348362113,1736467842683,-856.88,9.839e-05,2]
[348362114,1736467842692,-500.0,9.839e-05,2]
[348362115,1736467842702,-500.0,9.839e-05,2]
[348362117,1736467842712,-500.0,9.839e-05,2]
[348362118,1736467842722,-2019.33,9.839e-05,2]
[348362119,1736467842731,-621.15,9.839e-05,2]
[348362120,1736467842741,-6192.24,9.839e-05,2]
[348362121,1736467842750,-2421.65,9.839e-05,2]
[348362122,1736467842760,-3449.6,9.839e-05,2]
[348362123,1736467842770,-2091.81,9.839e-05,2]
[348362125,1736467842780,-2457.23,9.839e-05,2]
[348362127,1736467842789,-500.0,9.839e-05,2]
[348362129,1736467842798,-1367.11,9.839e-05,2]
[348362131,1736467842807,-1390.52,9.839e-05,2]
[348362132,1736467842819,-3354.96,9.839e-05,2]
[348362133,1736467842829,-1318.53,9.84e-05,2]
[348362134,1736467842839,-1331.3,9.84e-05,2]
[348362135,1736467842849,-643.73,9.84e-05,2]
[348362136,1736467842859,-500.0,9.84e-05,2]
[348362137,1736467842868,-2023.01,9.84e-05,2]
[348362139,1736467842878,-911.6,9.84e-05,2]
[348362140,1736467842887,-1423.71,9.84e-05,2]
[348362141,1736467842897,-1183.41,9.84e-05,2]
[348362142,1736467842907,-1816.54,9.84e-05,2]
[348362143,1736467842916,-1378.76,9.84e-05,2]
[348362144,1736467842925,-642.71,9.84e-05,2]
[348362145,1736467842935,-2087.33,9.84e-05,2]
[348362146,1736467842944,-3112.78,9.84e-05,2]
[348362147,1736467842954,-8090.8,9.84e-05,2]
[348362148,1736467842963,-1471.23,9.84e-05,2]
[348362149,1736467842973,-1076.2,9.84e-05,2]
[348362150,1736467842982,-1126.32,9.84e-05,2]
[348362151,1736467842991,-3093.81,9.84e-05,2]
[348362152,1736467843001,-500.0,9.84e-05,2]
[348362153,1736467843011,-1011.17,9.84e-05,2]
[348362154,1736467843020,-1628.13,9.84e-05,2]
[348362155,1736467843030,-3549.0,9.841e-05,2]
[348362156,1736467843039,-1076.04,9.841e-05,2]
[348362157,1736467843048,-1812.94,9.841e-05,2]
[348362158,1736467843057,-2079.67,9.841e-05,2]
[348362159,1736467843066,-500.0,9.841e-05,2]
[348362160,1736467843075,-1102.76,9.841e-05,2]
[348362161,1736467843084,-1290.55,9.841e-05,2]
[348362162,1736467843093,-500.0,9.841e-05,2]
[348362163,1736467843102,-848.2,9.85e-05,2]
[348362164,1736467843110,-979.7,9.85e-05,2]
[348362165,1736467843120,-305.6,9.85e-05,2]
[348362166,1736467843128,-979.7,9.85e-05,2]
[348362167,1736467843138,-979.7,9.85e-05,2]
[348362168,1736467843148,-968.74752993,9.91e-05,2]
[348362169,1736467843158,-200.0,9.97e-05,2]
[348362170,1736467843167,-17725.25239826,9.971e-05,2]
[348362171,1736467843177,-865.38651987,9.971e-05,2]
[348362172,1736467843188,-2907.71131836,9.971e-05,2]
[348362173,1736467843198,-1673.75552355,9.972e-05,2]
[348362174,1736467843208,-2907.71131836,9.973e-05,2]
[348362175,1736467843218,-3364.60128082,9.973e-05,2]
[348362176,1736467843228,-65629.76365882,9.973e-05,2]
[348362177,1736467843238,-865.38651987,9.974e-05,2]
[348362178,1736467843249,-17725.25239826,9.975e-05,2]
[348362179,1736467843258,-17725.25239826,9.975e-05,2]
[348362180,1736467843268,-3364.60128082,9.975e-05,2]
[348362181,1736467843279,-17725.25239826,9.978e-05,2]
[348362182,1736467843288,-200.0,9.978e-05,2]
[348362183,1736467843297,-3364.60128082,9.978e-05,2]
[348362184,1736467843307,-17725.25239826,9.978e-05,2]
[348362185,1736467843317,-2907.71131836,9.979e-05,2]
[348362186,1736467843326,-1673.75552355,9.98e-05,2]
[348362187,1736467843336,-2907.71131836,9.98e-05,2]
[348362188,1736467843346,-65629.76365882,9.982e-05,2]
[348362189,1736467843356,-200.0,9.983e-05,2]
[348362190,1736467843367,-1673.75552355,9.984e-05,2]
[348362191,1736467843377,-17725.25239826,9.985e-05,2]
[348362192,1736467843386,-865.38651987,9.985e-05,2]
[348362193,1736467843397,-865.38651987,9.986e-05,2]
[348362194,1736467843406,-200.0,9.986e-05,2]
[348362195,1736467843416,-3364.60128082,9.987e-05,2]
[348362196,1736467843426,-1673.75552355,9.988e-05,2]
[348362197,1736467843436,-1673.75552355,9.988e-05,2]
[348362198,1736467843445,-865.38651987,9.988e-05,2]
[348362199,1736467843455,-1673.75552355,9.989e-05,2]
[348362200,1736467843465,-3364.60128082,9.99e-05,2]
[348362201,1736467843476,-65629.76365882,9.99e-05,2]
[348362202,1736467843485,-22481.4935075,9.991e-05,2]
[348362203,1736467843871,-1075.43,9.991e-05,2]
[348362204,1736467843903,-1710.433725,9.991e-05,2]
[348362205,1736467843915,-21452.08490068,9.991e-05,2]
[348362206,1736467843926,-1891.03060736,9.991e-05,2]
[348362207,1736467844312,-17019.29091828,9.991e-05,2]
[348362208,1736467844323,-65629.76365882,9.991e-05,2]
[348362209,1736467844333,-3364.60128082,9.992e-05,2]
[348362210,1736467844342,-2907.71131836,9.995e-05,2]
[348362211,1736467844353,-2907.71131836,9.997e-05,2]
[348362212,1736467844363,-968.74752993,9.997e-05,2]
[348362213,1736467844374,-65629.76365882,9.998e-05,2]
[348362214,1736467844384,-865.38651987,9.999e-05,2]
[348362215,1736467844398,-147179.25385431,0.0001,2]
[348362216,1736467844407,-187.2,0.0001,2]
[348362217,1736467844417,-968.74753011,0.0001,2]
[348362218,1736467844427,-968.74752993,0.0001,2]
[348362219,1736467844436,-355.02346279,0.0001,2]
[348362220,1736467844446,-204.40608846,0.0001,2]
[348362221,1736467844456,-204.4060883,0.00010011,2]
[348362222,1736467844465,-173.11808505,0.00010012,2]
[348362223,1736467844475,-200.0434,0.00010012,2]
[348362224,1736467844485,-1210.7534,0.00010014,2]
[348362225,1736467844494,-872.69181978,0.00010014,2]
[348362226,1736467844503,-968.74752993,0.00010083,2]
[348362227,1736467844513,-500.0,0.00010111,2]
[348362228,1736467844522,-500.0,0.00010111,2]
[348362229,1736467844532,-500.0,0.00010111,2]
[348362230,1736467844541,-500.0,0.00010111,2]
[348362231,1736467844551,-500.0,0.00010111,2]
[348362232,1736467844560,-615.18,0.00010111,2]
[348362233,1736467844570,-659.34,0.00010111,2]
[348362234,1736467844580,-500.0,0.00010111,2]
[348362235,1736467844590,-500.0,0.00010111,2]
[348362236,1736467844600,-500.0,0.00010111,2]
[348362237,1736467844609,-552.8,0.00010111,2]
[348362238,1736467844619,-796.37,0.00010111,2]
[348362239,1736467844628,-500.0,0.00010111,2]
[348362240,1736467844638,-500.0,0.00010111,2]
[348362241,1736467844651,-500.0,0.00010111,2]
[348362242,1736467844660,-505.63,0.00010111,2]
[348362243,1736467844670,-500.0,0.00010111,2]
[348362244,1736467844680,-800.35,0.00010111,2]
[348362245,1736467844689,-500.0,0.00010111,2]
[348362246,1736467844700,-793.58,0.00010111,2]
[348362247,1736467844710,-500.0,0.00010111,2]
[348362248,1736467844720,-500.0,0.00010111,2]
[348362249,1736467844730,-1052.4,0.00010111,2]
[348362250,1736467844740,-525.53,0.00010111,2]
[348362251,1736467844751,-500.0,0.00010111,2]
[348362252,1736467844762,-679.29,0.00010111,2]
[348362253,1736467844772,-809.4,0.00010111,2]
[348362254,1736467844782,-585.06,0.00010111,2]
[348362255,1736467844792,-896.92,0.00010111,2]
[348362256,1736467844803,-500.0,0.00010111,2]
[348362257,1736467844814,-631.72,0.00010111,2]
[348362258,1736467844824,-610.35,0.00010111,2]
[348362259,1736467844834,-580.74,0.00010111,2]
[348362260,1736467844845,-545.68,0.00010111,2]
[348362261,1736467844855,-500.0,0.00010111,2]
[348362262,1736467844865,-500.0,0.00010111,2]
[348362263,1736467844875,-720.29,0.00010111,2]
[348362264,1736467844885,-1008.76,0.00010111,2]
[348362265,1736467844897,-526.46,0.00010111,2]
[348362266,1736467844906,-500.0,0.00010111,2]
[348362267,1736467844916,-727.39,0.00010111,2]
[348362268,1736467844926,-1998.85,0.00010111,2]
[348362269,1736467844936,-897.09,0.00010111,2]
[348362270,1736467844945,-1060.42,0.00010111,2]
[348362271,1736467844955,-618.08,0.00010111,2]
[348362272,1736467844964,-500.0,0.00010111,2]
[348362273,1736467844974,-500.0,0.00010111,2]
[348362274,1736467844984,-581.44,0.00010111,2]
[348362275,1736467844994,-500.0,0.00010111,2]
[348362276,1736467845004,-500.0,0.00010111,2]
[348362277,1736467845014,-1353.44,0.00010111,2]
[348362278,1736467845024,-526.44,0.00010111,2]
[348362279,1736467845035,-3237.3,0.00010111,2]
[348362280,1736467845044,-515.11,0.00010111,2]
[348362281,1736467845054,-9448.07,0.00010111,2]
[348362282,1736467845064,-1131.14,0.00010111,2]
[348362283,1736467845073,-1043.57,0.00010111,2]
[348362284,1736467845084,-1094.79,0.00010111,2]
[348362285,1736467845093,-1164.5,0.00010111,2]
[348362286,1736467845103,-1423.19,0.00010111,2]
[348362287,1736467845112,-1300.05,0.00010111,2]
[348362288,1736467845123,-1450.3,0.00010111,2]
[348362289,1736467845132,-500.0,0.00010111,2]
[348362290,1736467845143,-1921.15,0.00010111,2]
[348362291,1736467845157,-2555.85,0.00010111,2]
[348362292,1736467845168,-500.0,0.00010111,2]
[348362293,1736467845177,-500.0,0.00010111,2]
[348362294,1736467845187,-500.0,0.00010111,2]
[348362295,1736467845196,-714.82,0.00010111,2]
[348362296,1736467845206,-2253.23,0.00010111,2]
[348362297,1736467845215,-500.0,0.00010111,2]
[348362298,1736467845224,-4857.11,0.00010111,2]
[348362299,1736467845234,-3515.19,0.00010111,2]
[348362300,1736467845243,-3312.18,0.00010111,2]
[348362301,1736467845253,-964.25,0.00010111,2]
[348362302,1736467845263,-767.74,0.00010111,2]
[348362303,1736467845272,-2175.42,0.00010111,2]
[348362304,1736467845282,-1045.06,0.00010111,2]
[348362305,1736467845291,-500.0,0.00010111,2]
[348362306,1736467845301,-505.54,0.00010111,2]
[348362307,1736467845311,-2120.55,0.00010111,2]
[348362308,1736467845320,-1442.35,0.00010111,2]
[348362309,1736467845329,-2186.38,0.00010111,2]
[348362310,1736467845339,-527.1,0.00010111,2]
[348362311,1736467845348,-3553.53,0.00010111,2]
[348362312,1736467845360,-1814.34,0.00010111,2]
[348362313,1736467845369,-500.0,0.00010111,2]
[348362314,1736467845378,-904.03,0.00010111,2]
[348362315,1736467845388,-1747.36,0.00010111,2]
[348362316,1736467845400,-587.38,0.00010111,2]
[348362317,1736467845410,-1318.67,0.00010111,2]
[348362318,1736467845419,-1294.38,0.00010111,2]
[348362319,1736467845429,-644.35,0.00010111,2]
[348362320,1736467845438,-996.310472,0.00010111,2]
[348362321,1736467845448,-697.92,0.00010111,2]
[348362322,1736467845459,-624.94,0.00010111,2]
[348362323,1736467845470,-2287.07,0.00010111,2]
[348362324,1736467845479,-500.0,0.00010111,2]
[348362325,1736467845489,-1010.210926,0.00010111,2]
[348362326,1736467845499,-1249.37,0.00010111,2]
[348362327,1736467845509,-1699.46,0.00010111,2]
[348362328,1736467845519,-1072.66,0.00010111,2]
[348362329,1736467845530,-2270.11146367,0.00010111,2]
[348362330,1736467845540,-670.53,0.00010111,2]
[348362331,1736467845550,-1122.28,0.00010111,2]
[348362332,1736467845559,-3496.02,0.00010111,2]
[348362335,1736467845569,-555.15,0.00010111,2]
[348362337,1736467845579,-1152.74,0.00010111,2]
[348362338,1736467845588,-4447.51,0.00010111,2]
[348362339,1736467845597,-500.0,0.00010111,2]
[348362340,1736467845607,-1136.1,0.00010111,2]
[348362341,1736467845618,-1540.7,0.00010111,2]
[348362342,1736467845629,-500.0,0.00010112,2]
[348362343,1736467845639,-500.0,0.00010112,2]
[348362344,1736467845651,-500.0,0.00010112,2]
[348362345,1736467845661,-500.0,0.00010112,2]
[348362346,1736467845670,-500.0,0.00010112,2]
[348362347,1736467845680,-238.78187239,0.00010112,2]
[348362348,1736467845691,-500.0,0.00010112,2]
[348362349,1736467845703,-500.0,0.00010112,2]
[348362350,1736467845713,-500.0,0.00010112,2]
[348362351,1736467845726,-500.0,0.00010112,2]
[348362352,1736467845736,-225.99,0.00010112,2]
[348362353,1736467845747,-500.0,0.00010112,2]
[348362354,1736467845757,-500.0,0.00010112,2]
[348362355,1736467845768,-618.24,0.00010112,2]
[348362356,1736467845778,-500.0,0.00010112,2]
[348362357,1736467845788,-500.0,0.00010112,2]
[348362358,1736467845799,-500.0,0.00010112,2]
[348362359,1736467845809,-500.0,0.00010112,2]
[348362360,1736467845820,-500.0,0.00010112,2]
[348362361,1736467845833,-500.0,0.00010112,2]
[348362362,1736467845846,-500.0,0.00010112,2]
[348362363,1736467845857,-500.0,0.00010112,2]
[348362364,1736467845868,-500.0,0.00010112,2]
[348362365,1736467845879,-500.0,0.00010112,2]
[348362366,1736467845889,-500.0,0.00010112,2]
[348362367,1736467845904,-500.0,0.00010112,2]
[348362368,1736467845915,-500.0,0.00010112,2]
[348362369,1736467845928,-587.98191459,0.00010112,2]
[348362370,1736467845938,-500.0,0.00010112,2]
[348362371,1736467845949,-500.0,0.00010112,2]
[348362372,1736467845961,-500.0,0.00010112,2]
[348362373,1736467845973,-500.0,0.00010112,2]
[348362374,1736467845983,-500.0,0.00010112,2]
[348362375,1736467845993,-790.37,0.00010112,2]
[348362376,1736467846003,-500.0,0.00010112,2]
[348362386,1736467846231,-577.73,0.00010112,2]
[348362388,1736467846241,-500.0,0.00010112,2]
[348362389,1736467846251,-500.0,0.00010112,2]
[348362390,1736467846260,-737.57,0.00010112,2]
[348362391,1736467846270,-500.0,0.00010112,2]
[348362392,1736467846281,-569.06601652,0.00010112,2]
[348362393,1736467846291,-667.85,0.00010112,2]
[348362394,1736467846302,-500.0,0.00010112,2]
[348362395,1736467846313,-468.67,0.00010112,2]
[348362396,1736467846324,-500.0,0.00010112,2]
[348362397,1736467846334,-500.0,0.00010112,2]
[348362398,1736467846346,-500.0,0.00010112,2]
[348362399,1736467846355,-607.43,0.00010112,2]
[348362400,1736467846366,-500.0,0.00010112,2]
[348362401,1736467846376,-500.0,0.00010112,2]
[348362402,1736467846386,-596.04448329,0.00010112,2]
[348362403,1736467846397,-500.0,0.00010112,2]
[348362404,1736467846407,-500.0,0.00010112,2]
[348362405,1736467846417,-524.22,0.00010112,2]
[348362406,1736467846428,-500.0,0.00010112,2]
[348362407,1736467846438,-500.0,0.00010112,2]